fUSD/lending_fUSD_20260529
["ID","MTS","AMOUNT","RATE_DAILY","PERIOD"]
[423376324,1780068311000,-319.358523,0.00039343,30]
[423376323,1780068311000,-169.641586,0.00039343,30]
[423376325,1780068311000,-1379.631122,0.00039343,30]
[423376326,1780068311000,-151.0,0.00039343,30]
[423376327,1780068311000,-169.641586,0.00039343,30]
[423376328,1780068311000,-169.641586,0.00039343,30]
[423376338,1780068311000,-163.058714,0.00039343,30]
[423376330,1780068311000,-178.63631,0.00039343,30]
[423376336,1780068311000,-163.058714,0.00039343,30]
[423376334,1780068311000,-178.636306,0.00039343,30]
[423376335,1780068311000,-163.058714,0.00039343,30]
[423376333,1780068311000,-178.63631,0.00039343,30]
[423376332,1780068311000,-151.0,0.00039343,30]
[423376337,1780068311000,-251.254475,0.00039343,30]
[423376331,1780068311000,-178.63631,0.00039343,30]
[423376344,1780068312000,-251.254483,0.00039343,30]
[423376341,1780068312000,-246.276719,0.00039343,30]
[423376342,1780068312000,-251.254475,0.00039343,30]
[423376340,1780068312000,-163.058722,0.00039343,30]
[423376343,1780068312000,-246.276719,0.00039343,30]
[423376339,1780068312000,-251.254475,0.00039343,30]
[423376345,1780068312000,-246.276719,0.00039343,30]
[423376350,1780068312000,-151.0,0.00039343,30]
[423376346,1780068312000,-7152.97,0.00039343,90]
[423376348,1780068312000,-151.0,0.00039343,30]
[423376347,1780068312000,-246.276715,0.00039343,30]
[423376349,1780068312000,-151.0,0.00039343,30]
[423376351,1780068313000,-151.0,0.00039343,30]
[423376352,1780068313000,-197.211584,0.00039343,30]
[423376355,1780068313000,-197.211584,0.00039343,30]
[423376359,1780068313000,-151.0,0.00039343,30]
[423376356,1780068313000,-1478.398095,0.00039343,30]
[423376357,1780068313000,-1478.398095,0.00039343,30]
[423376360,1780068313000,-197.211584,0.00039343,30]
[423376363,1780068313000,-1478.398095,0.00039343,30]
[423376358,1780068313000,-151.0,0.00039343,30]
[423376353,1780068313000,-197.211584,0.00039343,30]
[423376354,1780068313000,-197.211584,0.00039343,30]
[423376362,1780068313000,-1478.398095,0.00039343,30]
[423376365,1780068313000,-151.0,0.00039343,30]
[423376361,1780068313000,-197.211584,0.00039343,30]
[423376364,1780068313000,-197.211584,0.00039343,30]
[423376366,1780068314000,-197.21158,0.00039343,30]
[423376370,1780068314000,-151.0,0.00039343,30]
[423376373,1780068314000,-1478.398095,0.00039343,30]
[423376367,1780068314000,-151.0,0.00039343,30]
[423376369,1780068314000,-1478.398095,0.00039343,30]
[423376374,1780068314000,-151.0,0.00039343,30]
[423376368,1780068314000,-1478.398095,0.00039343,30]
[423376372,1780068314000,-1478.398095,0.00039343,30]
[423376375,1780068314000,-232.931744,0.00039343,30]
[423376376,1780068314000,-164.367088,0.00039343,30]
[423376381,1780068314000,-2657.155971,0.00039343,30]
[423376382,1780068314000,-2657.155971,0.00039343,30]
[423376371,1780068314000,-151.0,0.00039343,30]
[423376380,1780068314000,-151.0,0.00039343,30]
[423376377,1780068314000,-151.0,0.00039343,30]
[423376378,1780068314000,-151.0,0.00039343,30]
[423376379,1780068314000,-151.0,0.00039343,30]
[423376383,1780068315000,-181.768492,0.00039343,30]
[423376384,1780068315000,-151.0,0.00039343,30]
[423376387,1780068315000,-2657.155971,0.00039343,30]
[423376386,1780068315000,-151.0,0.00039343,30]
[423376385,1780068315000,-2657.155971,0.00039343,30]
[423376391,1780068315000,-2657.155971,0.00039343,30]
[423376393,1780068315000,-2657.155965,0.00039343,30]
[423376389,1780068315000,-2657.155971,0.00039343,30]
[423376394,1780068315000,-792.91265,0.00039343,30]
[423376392,1780068315000,-2657.155971,0.00039343,30]
[423376396,1780068315000,-150.30096206,0.00039363,120]
[423376395,1780068315000,-792.91265,0.00039343,30]
[423376397,1780068315000,-170.99392172,0.00039363,120]
[423376398,1780068315000,-566.11191477,0.00039479,120]
[423376399,1780068315000,-566.11191476,0.00039479,120]
[423376390,1780068315000,-164.914064,0.00039343,30]
[423376388,1780068315000,-151.0,0.00039343,30]
[423376404,1780068316000,-566.11191476,0.00039479,120]
[423376406,1780068316000,-566.11191476,0.00039479,120]
[423376405,1780068316000,-566.11191476,0.00039479,120]
[423376408,1780068316000,-566.11191476,0.00039479,120]
[423376401,1780068316000,-566.11191476,0.00039479,120]
[423376400,1780068316000,-566.11191476,0.00039479,120]
[423376402,1780068316000,-566.11191476,0.00039479,120]
[423376412,1780068316000,-1219.59528008,0.000395,120]
[423376403,1780068316000,-566.11191476,0.00039479,120]
[423376407,1780068316000,-566.11191476,0.00039479,120]
[423376418,1780068316000,-566.11191476,0.00039616,120]
[423376417,1780068316000,-566.11191476,0.00039616,120]
[423376415,1780068316000,-566.11191476,0.00039616,120]
[423376416,1780068316000,-566.11191476,0.00039616,120]
[423376410,1780068316000,-566.11191476,0.00039479,120]
[423376413,1780068316000,-1658.36867758,0.000395,120]
[423376411,1780068316000,-237.12878273,0.000395,120]
[423376409,1780068316000,-566.11191476,0.00039479,120]
[423376414,1780068316000,-566.11191477,0.00039616,120]
[423376419,1780068317000,-566.11191476,0.00039616,120]
[423376421,1780068317000,-566.11191476,0.00039616,120]
[423376420,1780068317000,-566.11191476,0.00039616,120]
[423376422,1780068317000,-566.11191476,0.00039616,120]
[423376423,1780068317000,-566.11191476,0.00039616,120]
[423376424,1780068317000,-566.11191476,0.00039616,120]
[423376426,1780068317000,-566.11191476,0.00039616,120]
[423376428,1780068317000,-500.0,0.00039972,30]
[423376427,1780068317000,-500.0,0.00039856,60]
[423376425,1780068317000,-566.11191476,0.00039616,120]
[423376430,1780068317000,-500.0,0.00039999,31]
[423376429,1780068317000,-500.0,0.00039999,31]
[423376438,1780068317000,-500.0,0.00039999,31]
[423376436,1780068317000,-500.0,0.00039999,31]
[423376435,1780068317000,-500.0,0.00039999,31]
[423376437,1780068317000,-500.0,0.00039999,31]
[423376432,1780068317000,-370.21156091,0.00039999,31]
[423376433,1780068317000,-297.96287173,0.00039999,31]
[423376431,1780068317000,-500.0,0.00039999,31]
[423376434,1780068317000,-450.0,0.00039999,31]
[423376448,1780068318000,-5000.0,0.0004,100]
[423376439,1780068318000,-500.0,0.00039999,31]
[423376440,1780068318000,-500.0,0.00039999,31]
[423376442,1780068318000,-500.0,0.00039999,31]
[423376441,1780068318000,-261.23787257,0.00039999,31]
[423376443,1780068318000,-500.0,0.00039999,31]
[423376447,1780068318000,-5000.0,0.0004,90]
[423376445,1780068318000,-166953.46103893,0.0004,120]
[423376444,1780068318000,-500.0,0.00039999,31]
[423376453,1780068318000,-500.0,0.00040231,55]
[423376456,1780068318000,-500.0,0.0004052,30]
[423376455,1780068318000,-200.0,0.000405,30]
[423376450,1780068318000,-1800.0,0.0004013,60]
[423376458,1780068318000,-1219.59528008,0.000407,120]
[423376459,1780068318000,-1658.36867758,0.000407,120]
[423376460,1780068318000,-1536.0,0.00040726,120]
[423376457,1780068318000,-237.12878273,0.000407,120]
[423376452,1780068318000,-353.31,0.000402,50]
[423376449,1780068318000,-3000.0,0.0004013,60]
[423376446,1780068318000,-1000.0,0.0004,60]
[423376454,1780068318000,-1000.0,0.0004033,120]
[423376451,1780068318000,-495.21,0.00040136,120]
[423376471,1780068319000,-1800.0,0.00040952,60]
[423376468,1780068319000,-1536.0,0.00040726,120]
[423376469,1780068319000,-944.0,0.00040726,120]
[423376464,1780068319000,-1536.0,0.00040726,120]
[423376461,1780068319000,-1536.0,0.00040726,120]
[423376463,1780068319000,-1536.0,0.00040726,120]
[423376462,1780068319000,-1536.0,0.00040726,120]
[423376465,1780068319000,-1536.0,0.00040726,120]
[423376467,1780068319000,-1536.0,0.00040726,120]
[423376470,1780068319000,-3000.0,0.00040952,60]
[423376466,1780068319000,-1536.0,0.00040726,120]
[423376473,1780068319000,-10000.0,0.00041,120]
[423376482,1780068319000,-754.0,0.00041,120]
[423376480,1780068319000,-754.0,0.00041,120]
[423376476,1780068319000,-754.0,0.00041,120]
[423376478,1780068319000,-754.0,0.00041,120]
[423376477,1780068319000,-754.0,0.00041,120]
[423376472,1780068319000,-547.75916625,0.00041,120]
[423376475,1780068319000,-754.0,0.00041,120]
[423376474,1780068319000,-3159.0,0.00041,120]
[423376479,1780068319000,-754.0,0.00041,120]
[423376483,1780068319000,-754.0,0.00041,120]
[423376481,1780068319000,-754.0,0.00041,120]
[423376493,1780068320000,-163.0,0.0004138,120]
[423376485,1780068320000,-407.134,0.00041,120]
[423376491,1780068320000,-1550.0,0.0004137,120]
[423376488,1780068320000,-1293.0,0.00041096,60]
[423376489,1780068320000,-163.0,0.000412,120]
[423376486,1780068320000,-500.0,0.00041068,30]
[423376490,1780068320000,-495.21,0.00041205,120]
[423376492,1780068320000,-163.0,0.0004138,120]
[423376484,1780068320000,-763.962,0.00041,120]
[423376487,1780068320000,-1550.0,0.00041096,120]
[423376494,1780068320000,-158.0,0.0004138,120]
[423376495,1780068320000,-500.0,0.00041438,61]
[423376497,1780068320000,-1555.5,0.00041498,30]
[423376501,1780068320000,-1798.80895522,0.00041498,30]
[423376505,1780068320000,-2080.17592889,0.00041498,30]
[423376503,1780068320000,-1934.38338736,0.00041498,30]
[423376506,1780068320000,-2157.14243826,0.00041498,30]
[423376502,1780068320000,-1865.36488656,0.00041498,30]
[423376499,1780068320000,-1672.7364795,0.00041498,30]
[423376496,1780068320000,-1500.0,0.00041498,30]
[423376500,1780068320000,-1734.62772924,0.00041498,30]
[423376498,1780068320000,-1613.0535,0.00041498,30]
[423376504,1780068320000,-2005.9555727,0.00041498,30]
[423376517,1780068321000,-3111.0,0.00041498,30]
[423376508,1780068321000,-2319.72410669,0.00041498,30]
[423376511,1780068321000,-2586.85809042,0.00041498,30]
[423376512,1780068321000,-2682.57183977,0.00041498,30]
[423376510,1780068321000,-2494.55939288,0.00041498,30]
[423376513,1780068321000,-2781.82699784,0.00041498,30]
[423376509,1780068321000,-2405.55389863,0.00041498,30]
[423376507,1780068321000,-2236.95670847,0.00041498,30]
[423376514,1780068321000,-2884.75459676,0.00041498,30]
[423376518,1780068321000,-3226.107,0.00041498,30]
[423376515,1780068321000,-2991.49051684,0.00041498,30]
[423376529,1780068321000,-200.0,0.00041499,120]
[423376520,1780068321000,-160.0,0.00041498,30]
[423376523,1780068321000,-151.0,0.00041499,120]
[423376519,1780068321000,-2923.75890942,0.00041498,30]
[423376522,1780068321000,-200.0,0.00041499,120]
[423376521,1780068321000,-500.0,0.00041499,120]
[423376524,1780068321000,-151.0,0.00041499,120]
[423376525,1780068321000,-500.0,0.00041499,120]
[423376526,1780068321000,-151.0,0.00041499,120]
[423376528,1780068321000,-156.587,0.00041499,120]
[423376527,1780068321000,-200.0,0.00041499,120]
[423376530,1780068321000,-220.0,0.00041499,120]
[423376516,1780068321000,-3000.0,0.00041498,30]
[423376540,1780068322000,-537.6845,0.00041499,120]
[423376537,1780068322000,-151.0,0.00041499,120]
[423376538,1780068322000,-177.12318664,0.00041499,120]
[423376536,1780068322000,-162.380719,0.00041499,120]
[423376541,1780068322000,-220.0,0.00041499,120]
[423376534,1780068322000,-200.0,0.00041499,120]
[423376533,1780068322000,-500.0,0.00041499,120]
[423376532,1780068322000,-151.0,0.00041499,120]
[423376531,1780068322000,-518.5,0.00041499,120]
[423376535,1780068322000,-500.0,0.00041499,120]
[423376539,1780068322000,-200.0,0.00041499,120]
[423376552,1780068322000,-151.0,0.00041499,120]
[423376542,1780068322000,-151.0,0.00041499,120]
[423376543,1780068322000,-500.0,0.00041499,120]
[423376554,1780068322000,-174.61919141,0.00041499,120]
[423376551,1780068322000,-220.0,0.00041499,120]
[423376550,1780068322000,-557.5788265,0.00041499,120]
[423376549,1780068322000,-520.0,0.00041499,120]
[423376553,1780068322000,-500.0,0.00041499,120]
[423376548,1780068322000,-200.0,0.00041499,120]
[423376544,1780068322000,-168.3888056,0.00041499,120]
[423376546,1780068322000,-200.0,0.00041499,120]
[423376545,1780068322000,-500.0,0.00041499,120]
[423376547,1780068322000,-156.587,0.00041499,120]
[423376560,1780068323000,-200.0,0.00041499,120]
[423376556,1780068323000,-500.0,0.00041499,120]
[423376558,1780068323000,-162.380719,0.00041499,120]
[423376559,1780068323000,-539.24,0.00041499,120]
[423376557,1780068323000,-200.0,0.00041499,120]
[423376555,1780068323000,-500.0,0.00041499,120]
[423376563,1780068323000,-151.0,0.00041499,120]
[423376561,1780068323000,-578.20924308,0.00041499,120]
[423376562,1780068323000,-220.0,0.00041499,120]
[423376565,1780068323000,-500.0,0.00041499,120]
[423376564,1780068323000,-518.5,0.00041499,120]
[423376566,1780068323000,-200.0,0.00041499,120]
[423376567,1780068323000,-500.0,0.00041499,120]
[423376568,1780068323000,-181.08010149,0.00041499,120]
[423376570,1780068323000,-559.19188,0.00041499,120]
[423376569,1780068323000,-168.3888056,0.00041499,120]
[423376571,1780068323000,-599.60298507,0.00041499,120]
[423376580,1780068324000,-579.88197956,0.00041499,120]
[423376579,1780068324000,-174.61919141,0.00041499,120]
[423376577,1780068324000,-187.78006524,0.00041499,120]
[423376578,1780068324000,-500.0,0.00041499,120]
[423376572,1780068324000,-151.0,0.00041499,120]
[423376576,1780068324000,-186.29814638,0.00041499,120]
[423376574,1780068324000,-537.6845,0.00041499,120]
[423376583,1780068324000,-151.0,0.00041499,120]
[423376573,1780068324000,-220.0,0.00041499,120]
[423376575,1780068324000,-500.0,0.00041499,120]
[423376581,1780068324000,-200.0,0.00041499,120]
[423376591,1780068324000,-200.0,0.00041499,120]
[423376585,1780068324000,-557.5788265,0.00041499,120]
[423376582,1780068324000,-621.78829552,0.00041499,120]
[423376593,1780068324000,-220.0,0.00041499,120]
[423376592,1780068324000,-151.0,0.00041499,120]
[423376590,1780068324000,-644.79446245,0.00041499,120]
[423376594,1780068324000,-578.20924308,0.00041499,120]
[423376587,1780068324000,-181.08010149,0.00041499,120]
[423376588,1780068324000,-500.0,0.00041499,120]
[423376586,1780068324000,-500.0,0.00041499,120]
[423376584,1780068324000,-220.0,0.00041499,120]
[423376589,1780068324000,-601.3376128,0.00041499,120]
[423376606,1780068325000,-646.65982734,0.00041499,120]
[423376595,1780068325000,-500.0,0.00041499,120]
[423376596,1780068325000,-187.78006524,0.00041499,120]
[423376597,1780068325000,-623.58710447,0.00041499,120]
[423376598,1780068325000,-668.65185756,0.00041499,120]
[423376599,1780068325000,-500.0,0.00041499,120]
[423376600,1780068325000,-200.0,0.00041499,120]
[423376601,1780068325000,-151.0,0.00041499,120]
[423376603,1780068325000,-599.60298507,0.00041499,120]
[423376605,1780068325000,-194.72792766,0.00041499,120]
[423376604,1780068325000,-500.0,0.00041499,120]
[423376616,1780068325000,-719.04747942,0.00041499,120]
[423376607,1780068325000,-693.39197629,0.00041499,120]
[423376615,1780068325000,-670.58624095,0.00041499,120]
[423376614,1780068325000,-621.78829552,0.00041499,120]
[423376613,1780068325000,-500.0,0.00041499,120]
[423376612,1780068325000,-220.0,0.00041499,120]
[423376617,1780068325000,-500.0,0.00041499,120]
[423376610,1780068325000,-151.0,0.00041499,120]
[423376609,1780068325000,-200.0,0.00041499,120]
[423376608,1780068325000,-500.0,0.00041499,120]
[423376611,1780068325000,-194.72792766,0.00041499,120]
[423376602,1780068325000,-220.0,0.00041499,120]
[423376625,1780068326000,-644.79446245,0.00041499,120]
[423376618,1780068326000,-200.0,0.00041499,120]
[423376619,1780068326000,-151.0,0.00041499,120]
[423376620,1780068326000,-201.93286098,0.00041499,120]
[423376621,1780068326000,-500.0,0.00041499,120]
[423376622,1780068326000,-220.0,0.00041499,120]
[423376624,1780068326000,-745.65223615,0.00041499,120]
[423376623,1780068326000,-695.39793187,0.00041499,120]
[423376626,1780068326000,-209.40437684,0.00041499,120]
[423376628,1780068326000,-500.0,0.00041499,120]
[423376629,1780068326000,-200.0,0.00041499,120]
[423376630,1780068326000,-500.0,0.00041499,120]
[423376631,1780068326000,-201.93286098,0.00041499,120]
[423376633,1780068326000,-721.12765534,0.00041499,120]
[423376634,1780068326000,-773.24136889,0.00041499,120]
[423376632,1780068326000,-224.76907207,0.00041499,120]
[423376635,1780068326000,-217.15233878,0.00041499,120]
[423376636,1780068326000,-200.0,0.00041499,120]
[423376627,1780068326000,-151.0,0.00041499,120]
[423376645,1780068327000,-200.0,0.00041499,120]
[423376642,1780068327000,-500.0,0.00041499,120]
[423376643,1780068327000,-225.18697532,0.00041499,120]
[423376640,1780068327000,-747.80937859,0.00041499,120]
[423376637,1780068327000,-668.65185756,0.00041499,120]
[423376638,1780068327000,-500.0,0.00041499,120]
[423376639,1780068327000,-209.40437684,0.00041499,120]
[423376646,1780068327000,-500.0,0.00041499,120]
[423376641,1780068327000,-801.85129954,0.00041499,120]
[423376647,1780068327000,-151.0,0.00041499,120]
[423376644,1780068327000,-693.39197629,0.00041499,120]
[423376648,1780068327000,-775.4783256,0.00041499,120]
[423376657,1780068327000,-804.17102365,0.00041499,120]
[423376656,1780068327000,-500.0,0.00041499,120]
[423376655,1780068327000,-151.0,0.00041499,120]
[423376654,1780068327000,-200.0,0.00041499,120]
[423376649,1780068327000,-831.51979762,0.00041499,120]
[423376652,1780068327000,-233.5188934,0.00041499,120]
[423376651,1780068327000,-500.0,0.00041499,120]
[423376650,1780068327000,-217.15233878,0.00041499,120]
[423376658,1780068327000,-862.28603014,0.00041499,120]
[423376653,1780068327000,-719.04747942,0.00041499,120]
[423376659,1780068328000,-225.18697532,0.00041499,120]
[423376660,1780068328000,-500.0,0.00041499,120]
[423376661,1780068328000,-242.15909246,0.00041499,120]
[423376662,1780068328000,-151.0,0.00041499,120]
[423376663,1780068328000,-200.0,0.00041499,120]
[423376665,1780068328000,-894.19061325,0.00041499,120]
[423376666,1780068328000,-833.92535152,0.00041499,120]
[423376668,1780068328000,-500.0,0.00041499,120]
[423376667,1780068328000,-745.65223615,0.00041499,120]
[423376670,1780068328000,-280.17462272,0.00041499,120]
[423376664,1780068328000,-500.0,0.00041499,120]
[423376671,1780068328000,-151.0,0.00041499,120]
[423376669,1780068328000,-233.5188934,0.00041499,120]
[423376679,1780068328000,-151.0,0.00041499,120]
[423376678,1780068328000,-242.15909246,0.00041499,120]
[423376676,1780068328000,-773.24136889,0.00041499,120]
[423376677,1780068328000,-500.0,0.00041499,120]
[423376680,1780068328000,-200.0,0.00041499,120]
[423376673,1780068328000,-927.27566594,0.00041499,120]
[423376674,1780068328000,-864.78058953,0.00041499,120]
[423376672,1780068328000,-200.0,0.00041499,120]
[423376675,1780068328000,-500.0,0.00041499,120]
[423376689,1780068329000,-997.16350552,0.00041499,120]
[423376681,1780068329000,-961.58486558,0.00041499,120]
[423376682,1780068329000,-896.77747134,0.00041499,120]
[423376683,1780068329000,-500.0,0.00041499,120]
[423376684,1780068329000,-275.92646079,0.00041499,120]
[423376686,1780068329000,-251.11897888,0.00041499,120]
[423376685,1780068329000,-500.0,0.00041499,120]
[423376688,1780068329000,-929.95823778,0.00041499,120]
[423376687,1780068329000,-151.0,0.00041499,120]
[423376690,1780068329000,-500.0,0.00041499,120]
[423376691,1780068329000,-500.0,0.00041499,120]
[423376698,1780068329000,-270.0455652,0.00041499,120]
[423376694,1780068329000,-151.0,0.00041499,120]
[423376695,1780068329000,-964.36669258,0.00041499,120]
[423376693,1780068329000,-260.4103811,0.00041499,120]
[423376697,1780068329000,-500.0,0.00041499,120]
[423376696,1780068329000,-500.0,0.00041499,120]
[423376699,1780068329000,-200.0,0.00041499,120]
[423376700,1780068329000,-1000.04826021,0.00041499,120]
[423376702,1780068329000,-500.0,0.00041499,120]
[423376701,1780068329000,-500.0,0.00041499,120]
[423376692,1780068329000,-200.0,0.00041499,120]
[423376703,1780068329000,-337.28186717,0.00041499,120]
[423376713,1780068330000,-251.0,0.00041499,120]
[423376710,1780068330000,-151.0,0.00041499,120]
[423376711,1780068330000,-200.0,0.00041499,120]
[423376709,1780068330000,-620.0,0.00041499,120]
[423376704,1780068330000,-200.0,0.00041499,120]
[423376707,1780068330000,-1037.05004577,0.00041499,120]
[423376706,1780068330000,-200.0,0.00041499,120]
[423376705,1780068330000,-500.0,0.00041499,120]
[423376712,1780068330000,-642.94,0.00041499,120]
[423376708,1780068330000,-200.0,0.00041499,120]
[423376714,1780068330000,-156.587,0.00041499,120]
[423376721,1780068330000,-162.380719,0.00041499,120]
[423376715,1780068330000,-151.0,0.00041499,120]
[423376716,1780068330000,-200.0,0.00041499,120]
[423376726,1780068330000,-156.587,0.00041499,120]
[423376725,1780068330000,-218.97758758,0.00041499,120]
[423376724,1780068330000,-156.587,0.00041499,120]
[423376722,1780068330000,-151.0,0.00041499,120]
[423376720,1780068330000,-260.287,0.00041499,120]
[423376719,1780068330000,-666.72878,0.00041499,120]
[423376717,1780068330000,-151.0,0.00041499,120]
[423376723,1780068330000,-1958.52486824,0.00041499,120]
[423376718,1780068330000,-151.0,0.00041499,120]
[423376728,1780068331000,-691.39774486,0.00041499,120]
[423376727,1780068331000,-156.587,0.00041499,120]
[423376729,1780068331000,-269.917619,0.00041499,120]
[423376730,1780068331000,-168.3888056,0.00041499,120]
[423376731,1780068331000,-180.15560403,0.00041499,120]
[423376732,1780068331000,-162.380719,0.00041499,120]
[423376733,1780068331000,-162.380719,0.00041499,120]
[423376734,1780068331000,-716.97946141,0.00041499,120]
[423376736,1780068331000,-279.9045709,0.00041499,120]
[423376737,1780068331000,-174.61919141,0.00041499,120]
[423376738,1780068331000,-168.3888056,0.00041499,120]
[423376739,1780068331000,-168.3888056,0.00041499,120]
[423376740,1780068331000,-743.50770149,0.00041499,120]
[423376741,1780068331000,-168.3888056,0.00041499,120]
[423376743,1780068331000,-181.08010149,0.00041499,120]
[423376742,1780068331000,-290.26104002,0.00041499,120]
[423376735,1780068331000,-162.380719,0.00041499,120]
[423376749,1780068332000,-187.78006524,0.00041499,120]
[423376744,1780068332000,-174.61919141,0.00041499,120]
[423376745,1780068332000,-174.61919141,0.00041499,120]
[423376746,1780068332000,-771.01748644,0.00041499,120]
[423376747,1780068332000,-174.61919141,0.00041499,120]
[423376748,1780068332000,-301.0006985,0.00041499,120]
[423376751,1780068332000,-181.08010149,0.00041499,120]
[423376759,1780068332000,-1000000.0,0.000415,120]
[423376753,1780068332000,-312.13772435,0.00041499,120]
[423376752,1780068332000,-181.08010149,0.00041499,120]
[423376754,1780068332000,-194.72792766,0.00041499,120]
[423376756,1780068332000,-1000000.0,0.000415,120]
[423376755,1780068332000,-764936.82561857,0.000415,120]
[423376757,1780068332000,-1000000.0,0.000415,120]
[423376758,1780068332000,-1000000.0,0.000415,120]
[423376750,1780068332000,-181.08010149,0.00041499,120]
[423376760,1780068333000,-1000000.0,0.000415,120]
[423376761,1780068333000,-1000000.0,0.000415,120]
[423376762,1780068333000,-4320.0,0.000415,120]
[423376763,1780068333000,-500.0,0.000415,120]
[423376764,1780068333000,-1000.0,0.000415,30]
[423376765,1780068333000,-718.0,0.000415,120]
[423376767,1780068333000,-2497.853,0.000415,120]
[423376768,1780068333000,-2497.85,0.000415,120]
[423376769,1780068333000,-2262.664,0.000415,120]
[423376770,1780068333000,-2262.664,0.000415,120]
[423376772,1780068333000,-1452059.28192068,0.000415,120]
[423376771,1780068333000,-2262.66,0.000415,120]
[423376766,1780068333000,-2497.853,0.000415,120]
[423376775,1780068339000,222.24,0.000252,120]
[423376774,1780068339000,150.0,0.000252,120]
[423376773,1780068339000,150.0,0.00028,120]
[423376776,1780068351000,-450.67,0.00025115,30]
[423376777,1780068351000,-1951.63,0.00028479,30]
[423376778,1780068351000,-899.59,0.00028559,30]
[423376779,1780068351000,-1111.76,0.00028559,30]
[423376781,1780068351000,-1951.63,0.00028652,30]
[423376780,1780068351000,-370.77,0.00028647,30]
[423376782,1780068351000,-899.59,0.00028706,30]
[423376783,1780068352000,-1111.76,0.00028706,30]
[423376784,1780068352000,-370.77,0.00028764,30]
[423376786,1780068352000,-715.47,0.00028801,30]
[423376785,1780068352000,-1799.18,0.00028765,30]
[423376787,1780068352000,-1951.63,0.00028826,30]
[423376790,1780068352000,-715.47,0.00028867,30]
[423376789,1780068352000,-1111.76,0.00028853,30]
[423376792,1780068352000,-543.09,0.00028909,30]
[423376791,1780068352000,-370.77,0.00028882,30]
[423376788,1780068352000,-899.59,0.00028853,30]
[423376793,1780068352000,-715.47,0.00028933,30]
[423376794,1780068352000,-165.82,0.00028933,30]
[423376800,1780068352000,-543.09,0.00028969,30]
[423376801,1780068352000,-715.56,0.00029,30]
[423376798,1780068352000,-165.82,0.00028933,30]
[423376802,1780068352000,-300.44,0.00029053,30]
[423376799,1780068352000,-543.09,0.00028939,30]
[423376797,1780068352000,-165.82,0.00028933,30]
[423376796,1780068352000,-165.82,0.00028933,30]
[423376795,1780068352000,-165.82,0.00028933,30]
[423376803,1780068352000,-300.44,0.00029053,30]
[423376804,1780068353000,-300.44,0.00029053,30]
[423376805,1780068353000,-300.44,0.00029053,30]
[423376806,1780068353000,-300.44,0.00029053,30]
[423376807,1780068353000,-300.44,0.00029053,30]
[423376808,1780068353000,-1012.73,0.00030985,30]
[423376810,1780068353000,-1012.73,0.00030994,30]
[423376809,1780068353000,-1012.73,0.00030989,30]
[423376812,1780068353000,-1012.73,0.00031002,30]
[423376811,1780068353000,-1012.73,0.00030998,30]
[423376813,1780068353000,-1012.73,0.00031006,30]
[423376816,1780068353000,-1012.73,0.00031019,30]
[423376815,1780068353000,-1012.73,0.00031015,30]
[423376818,1780068353000,-1012.73,0.00031028,30]
[423376817,1780068353000,-1012.73,0.00031023,30]
[423376820,1780068353000,-1012.73,0.00031036,30]
[423376819,1780068353000,-1012.73,0.00031032,30]
[423376821,1780068353000,-1012.73,0.0003104,30]
[423376822,1780068353000,-1012.73,0.00031045,30]
[423376814,1780068353000,-1012.73,0.00031011,30]
[423376828,1780068354000,-1012.73,0.0003107,30]